Workbook

Sheet 1 fascia con attrezzi GOLD
A1: Comitato Regionale Lombardo - Via Ovada, 40 20142 MILANO
B2: Organizzata da: | C2: U.S.Cassina Rizzardi
B3: Impianto e Indirizzo: | C3: Palazzetto di Villaguardia – via Tevere, 30 - Villaguardia - CO
B4: Svoltasi in data: | C4: Domenica 13 marzo 2016
B5: Disciplina: | C5: Ginnastica per Tutti
A6: Prova di qualificazione Regionale Trofeo Sincrogym - Zona 1
A7: 1° Fascia categoria GOLD - con attrezzi
A9: CL | B9: SOCIETA' | C9: Prov. | D9: TOTALE CON ATTR. | E9: PN | F9: COLLETTIVO CON ATTREZZI | J9: COPPIE CON ATTREZZI
F10: D | G10: E | H10: PN | I10: TOTALE | J10: ESERCIZIO 1^ COPPIA | K10: ESERCIZIO 2^ COPPIA | L10: PN | M10: TOTALE
A11: 1 | D11: =I11+M11-E11 -> 0 | E11: 0 | I11: =SUM(F11:G11)-H11 -> 0 | M11: =J11+K11-L11 -> 0
A12: =A11+1 -> 2 | D12: =I12+M12-E12 -> 0 | E12: 0 | I12: =SUM(F12:G12)-H12 -> 0 | M12: =J12+K12-L12 -> 0
A13: =A12+1 -> 3 | I13: =SUM(F13:G13)-H13 -> 0 | M13: =J13+K13-L13 -> 0
A14: =A13+1 -> 4 | I14: =SUM(F14:G14)-H14 -> 0 | M14: =J14+K14-L14 -> 0
A15: =A14+1 -> 5 | I15: =SUM(F15:G15)-H15 -> 0 | M15: =J15+K15 -> 0
A17: CL | B17: SOCIETA' | C17: Prov. | D17: COLLETTIVO CON ATTREZZI
D18: D | E18: E | F18: PN | G18: TOTALE
A19: 1 | G19: =SUM(D19:E19)-F19 -> 0
A20: =A19+1 -> 2 | G20: 0
A21: =A20+1 -> 3 | G21: 0
A22: =A21+1 -> 4 | G22: 0
A23: =A22+1 -> 5 | G23: 0
A24: =A23+1 -> 6 | G24: 0
A27: CL | B27: SOCIETA' | C27: Prov. | D27: COPPIE CON ATTREZZI
D28: ESERCIZIO 1^ COPPIA | E28: ESERCIZIO 2^ COPPIA | F28: PN | G28: TOTALE
A29: 1 | G29: =D29+E29-F29 -> 0
A30: =A29+1 -> 2 | G30: =D30+E30-F30 -> 0
A31: =A30+1 -> 3 | G31: =D31+E31-F31 -> 0
A32: =A31+1 -> 4 | G32: =D32+E32-F32 -> 0
A33: =A32+1 -> 5 | G33: =D33+E33 -> 0
A34: =A33+1 -> 6 | G34: =D34+E34 -> 0

Sheet 1 fascia senza attrezzi GOLD
A1: Comitato Regionale Lombardo - Via Ovada, 40 20142 MILANO
B2: Organizzata da: | C2: U.S.Cassina Rizzardi
B3: Impianto e Indirizzo: | C3: Palazzetto di Villaguardia – via Tevere, 30 - Villaguardia - CO
B4: Svoltasi in data: | C4: Domenica 13 marzo 2016
B5: Disciplina: | C5: Ginnastica per Tutti
A6: Prova di qualificazione Regionale Trofeo Sincrogym - Zona 1
A7: 1° Fascia categoria GOLD - senza attrezzi
A9: CL | B9: SOCIETA' | C9: Prov. | D9: TOTALE CON ATTR. | E9: PN | F9: COLLETTIVO SENZA ATTREZZI | J9: COPPIE SENZA ATTREZZI
F10: D | G10: E | H10: PN | I10: TOTALE | J10: ESERCIZIO 1^ COPPIA | K10: ESERCIZIO 2^ COPPIA | L10: PN | M10: TOTALE
A11: 1 | B11: 2348 - ARTISTICA LARIO | C11: CO | D11: =I11+M11-E11 -> 67.9 | E11: 0 | F11: 21.5 | G11: 15.2 | I11: =SUM(F11:G11)-H11 -> 36.7 | J11: 15.2 | K11: 16 | M11: =J11+K11-L11 -> 31.2
A12: =A11+1 -> 2 | D12: =I12+M12-E12 -> 0 | E12: 0 | I12: =SUM(F12:G12)-H12 -> 0 | M12: =J12+K12-L12 -> 0
A13: =A12+1 -> 3 | D13: =I13+M13-E13 -> 0 | E13: 0 | I13: =SUM(F13:G13)-H13 -> 0 | M13: =J13+K13-L13 -> 0
A14: =A13+1 -> 4 | D14: =I14+M14-E14 -> 0 | E14: 0 | I14: =SUM(F14:G14)-H14 -> 0 | M14: =J14+K14-L14 -> 0
A15: =A14+1 -> 5 | D15: =I15+M15-E15 -> 0 | E15: 0 | I15: =SUM(F15:G15)-H15 -> 0 | M15: =J15+K15 -> 0
A17: CL | B17: SOCIETA' | C17: Prov. | D17: COLLETTIVO SENZA ATTREZZI
D18: D | E18: E | F18: PN | G18: TOTALE
A19: 1 | B19: 2348 - ARTISTICA LARIO | C19: CO | D19: 21.5 | E19: 15.2 | G19: =SUM(D19:E19)-F19 -> 36.7
A20: =A19+1 -> 2 | G20: 0
A21: =A20+1 -> 3 | G21: 0
A22: =A21+1 -> 4 | G22: 0
A23: =A22+1 -> 5 | G23: 0
A24: =A23+1 -> 6 | G24: 0
A27: CL | B27: SOCIETA' | C27: Prov. | D27: COPPIE SENZA ATTREZZI
D28: ESERCIZIO 1^ COPPIA | E28: ESERCIZIO 2^ COPPIA | F28: PN | G28: TOTALE
A29: 1 | B29: 2348 - ARTISTICA LARIO | C29: CO | D29: 15.2 | E29: 16 | G29: =D29+E29-F29 -> 31.2
A30: =A29+1 -> 2 | G30: =D30+E30-F30 -> 0
A31: =A30+1 -> 3 | G31: =D31+E31-F31 -> 0
A32: =A31+1 -> 4 | G32: =D32+E32-F32 -> 0
A33: =A32+1 -> 5 | G33: =D33+E33 -> 0
A34: =A33+1 -> 6 | G34: =D34+E34 -> 0

Sheet 2 fascia con attrezzi GOLD
A1: Comitato Regionale Lombardo - Via Ovada, 40 20142 MILANO
B2: Organizzata da: | C2: U.S.Cassina Rizzardi
B3: Impianto e Indirizzo: | C3: Palazzetto di Villaguardia – via Tevere, 30 - Villaguardia - CO
B4: Svoltasi in data: | C4: Domenica 13 marzo 2016
B5: Disciplina: | C5: Ginnastica per Tutti
A6: Prova di qualificazione Regionale Trofeo Sincrogym - Zona 1
A7: 2° Fascia categoria GOLD - con attrezzi
A9: CL | B9: SOCIETA' | C9: Prov. | D9: TOTALE CON ATTR. | E9: PN | F9: COLLETTIVO CON ATTREZZI | J9: COPPIE CON ATTREZZI
F10: D | G10: E | H10: PN | I10: TOTALE | J10: ESERCIZIO 1^ COPPIA | K10: ESERCIZIO 2^ COPPIA | L10: PN | M10: TOTALE
A11: 1 | B11: 1689 - GINNICA 96 | C11: CO | D11: =I11+M11-E11 -> 70.8 | E11: 0 | F11: 22 | G11: 15.5 | I11: =SUM(F11:G11)-H11 -> 37.5 | J11: 17 | K11: 16.3 | M11: =J11+K11-L11 -> 33.3
A12: =A11+1 -> 2 | B12: 2397 - KINESIS | C12: VA | D12: =I12+M12-E12 -> 70.6 | E12: 0 | F12: 22 | G12: 14.9 | I12: =SUM(F12:G12)-H12 -> 36.9 | J12: 15.8 | K12: 17.9 | M12: =J12+K12-L12 -> 33.7
A13: =A12+1 -> 3 | D13: =I13+M13-E13 -> 0 | E13: 0 | I13: =SUM(F13:G13)-H13 -> 0 | M13: =J13+K13-L13 -> 0
A14: =A13+1 -> 4 | D14: 0 | E14: 0 | I14: =SUM(F14:G14)-H14 -> 0 | M14: =J14+K14-L14 -> 0
A15: =A14+1 -> 5 | D15: =I15+M15-E15 -> 0 | E15: 0 | I15: =SUM(F15:G15)-H15 -> 0 | M15: =J15+K15 -> 0
A17: CL | B17: SOCIETA' | C17: Prov. | D17: COLLETTIVO CON ATTREZZI
D18: D | E18: E | F18: PN | G18: TOTALE
A19: 1 | B19: 1689 - GINNICA 96 | C19: CO | D19: 22 | E19: 15.5 | G19: =SUM(D19:E19)-F19 -> 37.5
A20: =A19+1 -> 2 | B20: 2397 - KINESIS | C20: VA | D20: 22 | E20: 14.9 | G20: =SUM(D20:E20)-F20 -> 36.9
A21: =A20+1 -> 3 | G21: =SUM(D21:E21)-F21 -> 0
A22: =A21+1 -> 4 | G22: =SUM(D22:E22)-F22 -> 0
A23: =A22+1 -> 5 | G23: =SUM(D23:E23)-F23 -> 0
A24: =A23+1 -> 6 | G24: 0
A27: CL | B27: SOCIETA' | C27: Prov. | D27: COPPIE CON ATTREZZI
D28: ESERCIZIO 1^ COPPIA | E28: ESERCIZIO 2^ COPPIA | F28: PN | G28: TOTALE
A29: 1 | B29: 2397 - KINESIS | C29: VA | D29: 15.8 | E29: 17.9 | G29: =D29+E29-F29 -> 33.7
A30: =A29+1 -> 2 | B30: 1689 - GINNICA 96 | C30: CO | D30: 17 | E30: 16.3 | G30: =D30+E30-F30 -> 33.3
A31: =A30+1 -> 3 | G31: =D31+E31-F31 -> 0
A32: =A31+1 -> 4 | G32: =D32+E32-F32 -> 0
A33: =A32+1 -> 5 | G33: =D33+E33 -> 0
A34: =A33+1 -> 6 | G34: =D34+E34 -> 0

Sheet 2 fascia senza attrezzi GOLD
A1: Comitato Regionale Lombardo - Via Ovada, 40 20142 MILANO
B2: Organizzata da: | C2: U.S.Cassina Rizzardi
B3: Impianto e Indirizzo: | C3: Palazzetto di Villaguardia – via Tevere, 30 - Villaguardia - CO
B4: Svoltasi in data: | C4: Domenica 13 marzo 2016
B5: Disciplina: | C5: Ginnastica per Tutti
A6: Prova di qualificazione Regionale Trofeo Sincrogym - Zona 1
A7: 2° Fascia categoria GOLD - senza attrezzi
A9: CL | B9: SOCIETA' | C9: Prov. | D9: TOTALE CON ATTR. | E9: PN | F9: COLLETTIVO SENZA ATTREZZI | J9: COPPIE SENZA ATTREZZI
F10: D | G10: E | H10: PN | I10: TOTALE | J10: ESERCIZIO 1^ COPPIA | K10: ESERCIZIO 2^ COPPIA | L10: PN | M10: TOTALE
A11: 1 | B11: 1689 - GINNICA 96 | C11: CO | D11: =I11+M11-E11 -> 75.4 | E11: 0 | F11: 23 | G11: 15.7 | I11: =SUM(F11:G11)-H11 -> 38.7 | J11: 18.8 | K11: 17.9 | M11: =J11+K11-L11 -> 36.7
A12: =A11+1 -> 2 | B12: 2397 - KINESIS | C12: VA | D12: =I12+M12-E12 -> 73.4 | E12: 0 | F12: 22 | G12: 15.3 | I12: =SUM(F12:G12)-H12 -> 37.3 | J12: 18.1 | K12: 18 | M12: =J12+K12-L12 -> 36.1
A13: =A12+1 -> 3 | B13: 2697 - SPORT PIU' | C13: VA | D13: =I13+M13-E13 -> 71.7 | E13: 0 | F13: 23 | G13: 14.2 | I13: =SUM(F13:G13)-H13 -> 37.2 | J13: 17.6 | K13: 16.9 | M13: =J13+K13-L13 -> 34.5
A14: =A13+1 -> 4 | B14: 1334 - GINNASTICA CANTU' | C14: CO | D14: =I14+M14-E14 -> 68.6 | E14: 0 | F14: 22.5 | G14: 14.4 | I14: =SUM(F14:G14)-H14 -> 36.9 | J14: 14.7 | K14: 17 | M14: =J14+K14 -> 31.7
A15: =A14+1 -> 5 | B15: 2051 - SPORTINSIEME | C15: CO | D15: =I15+M15-E15 -> 66.8 | E15: 0 | F15: 22.5 | G15: 14.4 | I15: =SUM(F15:G15)-H15 -> 36.9 | J15: 13 | K15: 16.9 | M15: =J15+K15-L15 -> 29.9
A17: CL | B17: SOCIETA' | C17: Prov. | D17: COLLETTIVO SENZA ATTREZZI
D18: D | E18: E | F18: PN | G18: TOTALE
A19: 1 | B19: 1689 - GINNICA 96 | C19: CO | D19: 23 | E19: 15.7 | G19: =SUM(D19:E19)-F19 -> 38.7
A20: =A19+1 -> 2 | B20: 2397 - KINESIS | C20: VA | D20: 22 | E20: 15.3 | G20: =SUM(D20:E20)-F20 -> 37.3
A21: =A20+1 -> 3 | B21: 2697 - SPORT PIU' | C21: VA | D21: 23 | E21: 14.2 | G21: =SUM(D21:E21)-F21 -> 37.2
A22: =A21+1 -> 4 | B22: 1334 - GINNASTICA CANTU' | C22: CO | D22: 22.5 | E22: 14.4 | G22: =SUM(D22:E22)-F22 -> 36.9
A23: 4 | B23: 2051 - SPORTINSIEME | C23: CO | D23: 22.5 | E23: 14.4 | G23: =SUM(D23:E23)-F23 -> 36.9
A24: =A23+1 -> 5 | G24: =SUM(D24:E24)-F24 -> 0
A27: CL | B27: SOCIETA' | C27: Prov. | D27: COPPIE SENZA ATTREZZI
D28: ESERCIZIO 1^ COPPIA | E28: ESERCIZIO 2^ COPPIA | F28: PN | G28: TOTALE
A29: 1 | B29: 1689 - GINNICA 96 | C29: CO | D29: 18.8 | E29: 17.9 | G29: =D29+E29-F29 -> 36.7
A30: =A29+1 -> 2 | B30: 2397 - KINESIS | C30: VA | D30: 18.1 | E30: 18 | G30: =D30+E30-F30 -> 36.1
A31: =A30+1 -> 3 | B31: 2697 - SPORT PIU' | C31: VA | D31: 17.6 | E31: 16.9 | G31: =D31+E31-F31 -> 34.5
A32: =A31+1 -> 4 | B32: 1334 - GINNASTICA CANTU' | C32: CO | D32: 14.7 | E32: 17 | G32: =D32+E32 -> 31.7
A33: =A32+1 -> 5 | B33: 2051 - SPORTINSIEME | C33: CO | D33: 13 | E33: 16.9 | G33: =D33+E33-F33 -> 29.9
A34: =A33+1 -> 6 | G34: =D34+E34 -> 0

Sheet 3-4 fascia con attrezzi GOLD
A1: Comitato Regionale Lombardo - Via Ovada, 40 20142 MILANO
B2: Organizzata da: | C2: U.S.Cassina Rizzardi
B3: Impianto e Indirizzo: | C3: Palazzetto di Villaguardia – via Tevere, 30 - Villaguardia - CO
B4: Svoltasi in data: | C4: Domenica 13 marzo 2016
B5: Disciplina: | C5: Ginnastica per Tutti
A6: Prova di qualificazione Regionale Trofeo Sincrogym - Zona 1
A7: 3°- 4° Fascia categoria GOLD - con attrezzi
A9: CL | B9: SOCIETA' | C9: Prov. | D9: TOTALE CON ATTR. | E9: PN | F9: COLLETTIVO CON ATTREZZI | J9: COPPIE CON ATTREZZI
F10: D | G10: E | H10: PN | I10: TOTALE | J10: ESERCIZIO 1^ COPPIA | K10: ESERCIZIO 2^ COPPIA | L10: PN | M10: TOTALE
A11: 1 | B11: 1334 - GINNASTICA CANTU' | C11: CO | D11: =I11+M11-E11 -> 71.7 | E11: 0 | F11: 22 | G11: 14.8 | I11: =SUM(F11:G11)-H11 -> 36.8 | J11: 17.2 | K11: 17.7 | M11: =J11+K11-L11 -> 34.9
A12: =A11+1 -> 2 | B12: 2668 - GINNASTICA COMENSE | C12: CO | D12: =I12+M12-E12 -> 71.3 | E12: 0 | F12: 22 | G12: 13.4 | I12: =SUM(F12:G12)-H12 -> 35.4 | J12: 18 | K12: 17.9 | M12: =J12+K12-L12 -> 35.9
A13: =A12+1 -> 3 | B13: 0506 - GHISLANZONI GAL | C13: LC | D13: =I13+M13-E13 -> 70.9 | E13: 0 | F13: 21.5 | G13: 13.9 | I13: =SUM(F13:G13)-H13 -> 35.4 | J13: 17.4 | K13: 18.1 | M13: =J13+K13-L13 -> 35.5
A14: =A13+1 -> 4 | B14: 2746 - SAN ZENO | C14: LC | D14: =I14+M14-E14 -> 70.8 | E14: 0 | F14: 22 | G14: 14.6 | I14: =SUM(F14:G14)-H14 -> 36.6 | J14: 17.3 | K14: 16.9 | M14: =J14+K14-L14 -> 34.2
A15: =A14+1 -> 5 | D15: =I15+M15-E15 -> 0 | E15: 0 | I15: =SUM(F15:G15)-H15 -> 0 | M15: =J15+K15 -> 0
A17: CL | B17: SOCIETA' | C17: Prov. | D17: COLLETTIVO CON ATTREZZI
D18: D | E18: E | F18: PN | G18: TOTALE
A19: 1 | B19: 1334 - GINNASTICA CANTU' | C19: CO | D19: 22 | E19: 14.8 | G19: =SUM(D19:E19)-F19 -> 36.8
A20: =A19+1 -> 2 | B20: 2746 - SAN ZENO | C20: LC | D20: 22 | E20: 14.6 | G20: =SUM(D20:E20)-F20 -> 36.6
A21: =A20+1 -> 3 | B21: 0506 - GHISLANZONI GAL | C21: LC | D21: 21.5 | E21: 13.9 | G21: =SUM(D21:E21)-F21 -> 35.4
A22: 3 | B22: 2668 - GINNASTICA COMENSE | C22: CO | D22: 22 | E22: 13.4 | G22: =SUM(D22:E22)-F22 -> 35.4
A23: =A22+1 -> 4 | G23: =SUM(D23:E23)-F23 -> 0
A24: =A23+1 -> 5 | G24: 0
A27: CL | B27: SOCIETA' | C27: Prov. | D27: COPPIE CON ATTREZZI
D28: ESERCIZIO 1^ COPPIA | E28: ESERCIZIO 2^ COPPIA | F28: PN | G28: TOTALE
A29: 1 | B29: 2668 - GINNASTICA COMENSE | C29: CO | D29: 18 | E29: 17.9 | G29: =D29+E29-F29 -> 35.9
A30: =A29+1 -> 2 | B30: 0506 - GHISLANZONI GAL | C30: LC | D30: 17.4 | E30: 18.1 | G30: =D30+E30-F30 -> 35.5
A31: =A30+1 -> 3 | B31: 1334 - GINNASTICA CANTU' | C31: CO | D31: 17.2 | E31: 17.7 | G31: =D31+E31-F31 -> 34.9
A32: =A31+1 -> 4 | B32: 2746 - SAN ZENO | C32: LC | D32: 17.3 | E32: 16.9 | G32: =D32+E32-F32 -> 34.2
A33: =A32+1 -> 5 | G33: =D33+E33 -> 0
A34: =A33+1 -> 6 | G34: =D34+E34 -> 0

Sheet 3-4 fascia senza attrezzi GOL
A1: Comitato Regionale Lombardo - Via Ovada, 40 20142 MILANO
B2: Organizzata da: | C2: U.S.Cassina Rizzardi
B3: Impianto e Indirizzo: | C3: Palazzetto di Villaguardia – via Tevere, 30 - Villaguardia - CO
B4: Svoltasi in data: | C4: Domenica 13 marzo 2016
B5: Disciplina: | C5: Ginnastica per Tutti
A6: Prova di qualificazione Regionale Trofeo Sincrogym - Zona 1
A7: 3°- 4° Fascia categoria GOLD - senza attrezzi
A9: CL | B9: SOCIETA' | C9: Prov. | D9: TOTALE CON ATTR. | E9: PN | F9: COLLETTIVO SENZA ATTREZZI | J9: COPPIE SENZA ATTREZZI
F10: D | G10: E | H10: PN | I10: TOTALE | J10: ESERCIZIO 1^ COPPIA | K10: ESERCIZIO 2^ COPPIA | L10: PN | M10: TOTALE
A11: 1 | B11: 1689 - GINNICA 96 | C11: CO | D11: =I11+M11-E11 -> 73.8 | E11: 0 | F11: 23 | G11: 14.9 | I11: =SUM(F11:G11)-H11 -> 37.9 | J11: 18.1 | K11: 17.8 | M11: =J11+K11-L11 -> 35.9
A12: =A11+1 -> 2 | B12: 2348 - ARTISTICA LARIO | C12: CO | D12: =I12+M12-E12 -> 72.4 | E12: 0 | F12: 22.5 | G12: 15.1 | I12: =SUM(F12:G12)-H12 -> 37.6 | J12: 17.5 | K12: 17.3 | M12: =J12+K12-L12 -> 34.8
A13: =A12+1 -> 3 | B13: 2051 - SPORTINSIEME | C13: CO | D13: =I13+M13-E13 -> 70.8 | E13: 0 | F13: 22.5 | G13: 13.9 | I13: =SUM(F13:G13)-H13 -> 36.4 | J13: 16.7 | K13: 17.7 | M13: =J13+K13-L13 -> 34.4
A14: =A13+1 -> 4 | B14: 2024 - LA FENICE | C14: VA | D14: =I14+M14-E14 -> 70.4 | E14: 0 | F14: 22.5 | G14: 14.1 | I14: =SUM(F14:G14)-H14 -> 36.6 | J14: 16.7 | K14: 17.1 | M14: =J14+K14-L14 -> 33.8
A15: =A14+1 -> 5 | D15: =I15+M15-E15 -> 0 | E15: 0 | I15: =SUM(F15:G15)-H15 -> 0 | M15: =J15+K15 -> 0
A17: CL | B17: SOCIETA' | C17: Prov. | D17: COLLETTIVO SENZA ATTREZZI
D18: D | E18: E | F18: PN | G18: TOTALE
A19: 1 | B19: 1689 - GINNICA 96 | C19: CO | D19: 23 | E19: 14.9 | G19: =SUM(D19:E19)-F19 -> 37.9
A20: =A19+1 -> 2 | B20: 2348 - ARTISTICA LARIO | C20: CO | D20: 22.5 | E20: 15.1 | G20: =SUM(D20:E20)-F20 -> 37.6
A21: 3 | B21: 2024 - LA FENICE | C21: VA | D21: 22.5 | E21: 14.1 | G21: =SUM(D21:E21)-F21 -> 36.6
A22: =A21+1 -> 4 | B22: 2051 - SPORTINSIEME | C22: CO | D22: 22.5 | E22: 13.9 | G22: =SUM(D22:E22)-F22 -> 36.4
A23: =A22+1 -> 5 | G23: =SUM(D23:E23)-F23 -> 0
A24: =A23+1 -> 6 | G24: 0
A27: CL | B27: SOCIETA' | C27: Prov. | D27: COPPIE SENZA ATTREZZI
D28: ESERCIZIO 1^ COPPIA | E28: ESERCIZIO 2^ COPPIA | F28: PN | G28: TOTALE
A29: 1 | B29: 1689 - GINNICA 96 | C29: CO | D29: 18.1 | E29: 17.8 | G29: =D29+E29-F29 -> 35.9
A30: =A29+1 -> 2 | B30: 2348 - ARTISTICA LARIO | C30: CO | D30: 17.5 | E30: 17.3 | G30: =D30+E30-F30 -> 34.8
A31: =A30+1 -> 3 | B31: 2051 - SPORTINSIEME | C31: CO | D31: 16.7 | E31: 17.7 | G31: =D31+E31-F31 -> 34.4
A32: =A31+1 -> 4 | B32: 2024 - LA FENICE | C32: VA | D32: 16.7 | E32: 17.1 | G32: =D32+E32-F32 -> 33.8
A33: =A32+1 -> 5 | G33: =D33+E33 -> 0
A34: =A33+1 -> 6 | G34: =D34+E34 -> 0
